bitfinex-derivatives/quotes_SOLF0:USTF0_20260215
["timestamp","ask_amount","ask_price","bid_price","bid_amount"]
[1771117633176,6.05851858,88.518,88.446,5.7422812]
[1771117633975,6.05851858,88.518,88.455,5.7422812]
[1771117634475,6.05851858,88.518,88.457,10.18]
[1771117634677,6.05851858,88.518,88.458,5.7422812]
[1771117638375,6.05851858,88.516,88.458,5.7422812]
[1771117638572,6.05851858,88.516,88.431,5.7422812]
[1771117638774,6.05851858,88.514,88.431,5.7422812]
[1771117639377,6.05851858,88.514,88.442,10.1817]
[1771117639679,6.05851858,88.514,88.443,5.7422812]
[1771117640182,6.05851858,88.514,88.449,5.7422812]
[1771117640776,6.05851858,88.514,88.466,5.7422812]
[1771117641472,6.05851858,88.514,88.472,10.1782]
[1771117641673,6.05851858,88.514,88.472,15.9204812]
[1771117641876,6.05851858,88.514,88.472,5.7422812]
[1771117642780,6.05851858,88.564,88.501,5.7422812]
[1771117643401,6.05851858,88.563,88.501,5.7422812]
[1771117643880,6.05851858,88.563,88.502,5.7422812]
[1771117644882,6.05851858,88.563,88.504,5.7422812]
[1771117645290,6.05851858,88.593,88.521,5.7422812]
[1771117645582,16.35277187,88.595,88.534,5.7422812]
[1771117645987,6.05851858,88.594,88.534,5.7422812]
[1771117646181,6.05851858,88.593,88.498,5.7422812]
[1771117646381,6.05851858,88.581,88.498,5.7422812]
[1771117647389,6.05851858,88.579,88.498,5.7422812]
[1771117648187,6.05851858,88.577,88.498,5.7422812]
[1771117648386,6.05851858,88.575,88.498,5.7422812]
[1771117649485,6.05851858,88.575,88.468,34.03]
[1771117649486,6.05851858,88.575,88.508,5.7422812]
[1771117649682,6.05851858,88.594,88.508,5.7422812]
[1771117649879,6.05851858,88.594,88.521,5.7422812]
[1771117650586,6.05851858,88.594,88.523,5.7422812]
[1771117652384,6.05851858,88.594,88.508,5.7422812]
[1771117652584,6.05851858,88.59,88.508,5.7422812]
[1771117652785,6.05851858,88.588,88.508,5.7422812]
[1771117653790,6.05851858,88.586,88.508,5.7422812]
[1771117654389,6.05851858,88.584,88.508,5.7422812]
[1771117655288,6.05851858,88.582,88.508,5.7422812]
[1771117656186,34.03,88.576,88.49,5.7422812]
[1771117656393,6.05851858,88.568,88.49,5.7422812]
[1771117658294,6.05851858,88.566,88.49,5.7422812]
[1771117658593,6.05851858,88.564,88.49,5.7422812]
[1771117659490,6.05851858,88.562,88.49,5.7422812]
[1771117660290,5.86821839,88.579,88.49,5.7422812]
[1771117660694,5.86821839,88.579,88.501,6.10184983]
[1771117661093,5.86821839,88.579,88.507,10.1742]
[1771117661291,5.86821839,88.579,88.508,6.10184983]
[1771117661694,96.52,88.578,88.508,6.10184983]
[1771117661997,5.86821839,88.577,88.508,6.10184983]
[1771117662694,10.1663,88.576,88.508,6.10184983]
[1771117662897,5.86821839,88.575,88.508,6.10184983]
[1771117663387,5.86821839,88.575,88.517,5.78428953]
[1771117663892,10.1646,88.592,88.517,5.78428953]
[1771117663893,5.78023622,88.591,88.517,5.78428953]
[1771117664289,5.78023622,88.586,88.517,5.78428953]
[1771117665192,34.03,88.599,88.517,5.78428953]
[1771117665193,5.78023622,88.584,88.517,5.78428953]
[1771117666400,15.94573622,88.583,88.517,5.78428953]
[1771117666600,5.78023622,88.582,88.517,5.78428953]
[1771117671704,5.78023622,88.582,88.519,5.78428953]
[1771117672499,5.78023622,88.582,88.521,5.78428953]
[1771117673705,5.78023622,88.582,88.523,10.1723]
[1771117674607,5.78023622,88.582,88.513,10.1734]
[1771117675903,5.78023622,88.58,88.513,10.1734]
[1771117676510,5.78023622,88.58,88.52,10.1727]
[1771117677510,5.78023622,88.58,88.514,5.78428953]
[1771117678712,5.78023622,88.578,88.514,5.78428953]
[1771117681816,5.78023622,88.576,88.514,5.78428953]
[1771117683209,5.78023622,88.591,88.516,5.78428953]
[1771117684813,5.78023622,88.591,88.521,5.78428953]
[1771117686510,5.78023622,88.591,88.523,5.78428953]
[1771117687817,5.78023622,88.591,88.529,5.78428953]
[1771117688618,5.78023622,88.591,88.533,5.78428953]
[1771117688819,5.78023622,88.591,88.518,5.78428953]
[1771117689114,5.78023622,88.588,88.504,5.78428953]
[1771117689314,5.78023622,88.586,88.504,5.78428953]
[1771117689517,5.78023622,88.585,88.504,5.78428953]
[1771117689715,5.78023622,88.583,88.504,5.78428953]
[1771117689913,5.78023622,88.582,88.504,5.78428953]
[1771117690416,5.78023622,88.582,88.514,5.78428953]
[1771117690716,5.78023622,88.58,88.514,5.78428953]
[1771117691018,5.78023622,88.579,88.514,5.78428953]
[1771117691819,5.78023622,88.579,88.517,5.78428953]
[1771117692208,5.78023622,88.579,88.518,15.95718953]
[1771117692921,5.78023622,88.579,88.52,16.34654161]
[1771117693619,5.78023622,88.579,88.52,6.17384161]
[1771117695019,6.10079617,88.569,88.501,6.17384161]
[1771117695824,34.03,88.594,88.501,6.17384161]
[1771117695825,6.10079617,88.559,88.501,6.17384161]
[1771117696120,6.10079617,88.557,88.501,6.17384161]
[1771117696719,6.10079617,88.549,88.501,6.17384161]
[1771117696917,6.10079617,88.547,88.501,6.17384161]
[1771117698016,263.56,88.558,88.511,6.17384161]
[1771117699326,6.10079617,88.579,88.521,6.17384161]
[1771117699618,6.10079617,88.577,88.521,6.17384161]
[1771117699820,6.10079617,88.577,88.53,2.38258168]
[1771117700024,6.10079617,88.577,88.53,8.55642329]
[1771117701126,6.10079617,88.577,88.53,6.17384161]
[1771117702121,6.10079617,88.608,88.56,2.38258168]
[1771117702330,6.10079617,88.624,88.571,6.17384161]
[1771117705132,6.10079617,88.624,88.552,10.169]
[1771117707435,6.10079617,88.624,88.542,10.1701]
[1771117707934,7.31650588,88.622,88.542,10.1701]
[1771117708942,7.31650588,88.612,88.542,10.1701]
[1771117709228,7.31650588,88.612,88.53,10.1715]
[1771117709432,7.31761782,88.609,88.53,10.1715]
[1771117710738,7.27434992,88.603,88.53,10.1715]
[1771117711744,7.27434992,88.603,88.541,10.1703]
[1771117714541,7.27051295,88.617,88.555,10.1686]
[1771117714744,7.27051295,88.617,88.54,5.94568174]
[1771117715337,7.27148653,88.616,88.544,10.17]
[1771117715533,7.27148653,88.616,88.54,5.94568174]
[1771117715734,7.27148653,88.605,88.52,5.94568174]
[1771117716645,7.27009526,88.594,88.526,10.172]
[1771117717242,20.3174,88.643,88.52,5.94568174]
[1771117717243,7.27104298,88.612,88.536,10.1708]
[1771117717948,7.21808406,88.6,88.536,10.1708]
[1771117718146,7.21808406,88.6,88.526,10.172]
[1771117719548,7.21894663,88.612,88.52,26.98475602]
[1771117720148,7.21894663,88.612,88.521,21.03907428]
[1771117720758,7.25313872,88.604,88.533,10.1712]
[1771117721750,7.25525658,88.598,88.533,10.1712]
[1771117722751,7.20033048,88.595,88.533,10.1712]
[1771117722950,7.20033048,88.622,88.548,10.1694]
[1771117723851,7.20129808,88.62,88.539,10.1705]
[1771117724052,7.20129808,88.618,88.539,10.1705]
[1771117724454,7.20129808,88.616,88.539,10.1705]
[1771117724857,7.20204781,88.609,88.54,2.37969043]
[1771117725252,7.20204781,88.609,88.541,10.1703]
[1771117725453,7.20204781,88.609,88.55,2.37969043]
[1771117725854,7.20204781,88.609,88.55,12.54899043]
[1771117728455,130.3,88.621,88.513,120.24]
[1771117728456,7.20056204,88.599,88.53,2.37969043]
[1771117728656,7.20056204,88.599,88.55,2.37969043]
[1771117729049,7.20056204,88.599,88.56,2.37969043]
[1771117729249,7.20127213,88.619,88.56,2.37969043]
[1771117730161,7.23212492,88.616,88.56,2.37969043]
[1771117730955,90.08,88.625,88.56,2.37969043]
[1771117730956,7.23285269,88.613,88.56,2.37969043]
[1771117732760,10.1623,88.612,88.56,2.37969043]
[1771117732959,7.21648532,88.611,88.56,2.37969043]
[1771117733851,7.21648532,88.609,88.56,2.37969043]
[1771117734057,7.20730772,88.623,88.57,2.37969043]
[1771117735859,7.21634356,88.621,88.57,2.37969043]
[1771117738665,7.21634356,88.621,88.58,2.37969043]
[1771117738865,7.21634356,88.621,88.57,2.37969043]
[1771117740759,7.21493535,88.619,88.57,2.37969043]
[1771117742455,7.21493535,88.619,88.56,2.37969043]
[1771117742659,7.25938683,88.609,88.55,2.37969043]
[1771117743361,7.26003628,88.579,88.516,21.03907428]
[1771117743565,7.26003628,88.579,88.51,2.37969043]
[1771117744164,7.2830878,88.576,88.512,10.1736]
[1771117744367,7.2830878,88.576,88.52,2.37969043]
[1771117744868,7.28374376,88.573,88.52,2.37969043]
[1771117745561,7.28374376,88.571,88.52,2.37969043]
[1771117745757,2.37969043,88.57,88.51,2.37969043]
[1771117745963,9.60413974,88.57,88.51,2.37969043]
[1771117746168,7.22444931,88.57,88.52,2.37969043]
[1771117747470,7.22504128,88.568,88.52,2.37969043]
[1771117751077,7.17427305,88.589,88.53,2.37969043]
[1771117752667,7.18554074,88.569,88.5,2.37969043]
[1771117753878,7.18554074,88.569,88.501,10.1749]
[1771117754773,2.37969043,88.56,88.501,10.1749]
[1771117754979,7.31812174,88.559,88.501,10.1749]
[1771117756067,7.31812174,88.559,88.51,2.37969043]
[1771117756382,7.31812174,88.559,88.516,10.1732]
[1771117757577,7.31812174,88.559,88.505,10.1744]
[1771117759285,7.31812174,88.559,88.5,2.38169543]
[1771117759982,7.31812174,88.559,88.51,2.38169543]
[1771117761178,7.31812174,88.559,88.5,2.38169543]
[1771117761378,7.31812174,88.559,88.501,10.1749]
[1771117761582,7.31812174,88.559,88.51,2.38169543]
[1771117763085,7.31812174,88.559,88.52,2.38169543]
[1771117763281,7.40034392,88.574,88.52,2.38169543]
[1771117764280,7.40034392,88.574,88.53,2.38169543]
[1771117765680,7.40034392,88.574,88.52,2.38169543]
[1771117771789,7.40034392,88.574,88.513,10.1735]
[1771117772888,7.3998687,88.572,88.513,10.1735]
[1771117775287,7.3998687,88.572,88.512,10.1736]
[1771117775492,7.3998687,88.572,88.52,2.38169543]
[1771117775695,7.3998687,88.572,88.53,2.38169543]
[1771117776887,34.03,88.618,88.54,2.38169543]
[1771117776888,10.1654,88.585,88.54,2.38169543]
[1771117777389,7.33902921,88.584,88.54,2.38169543]
[1771117777595,7.33902921,88.584,88.53,2.38169543]
[1771117779091,7.33902921,88.584,88.541,10.1702]
[1771117779289,7.41640156,88.602,88.55,2.38169543]
[1771117779490,7.41640156,88.602,88.56,2.38169543]
[1771117779892,10.1622,88.612,88.56,2.38169543]
[1771117780990,17.57827603,88.612,88.56,2.38169543]
[1771117781698,7.41607603,88.611,88.56,2.38169543]
[1771117782891,7.41607603,88.611,88.561,10.1679]
[1771117783492,10.30501917,88.67,88.6,2.38169543]
[1771117783698,7.4418183,88.686,88.63,2.38169543]
[1771117784697,10.1546,88.678,88.63,2.38169543]
[1771117784896,7.48026864,88.677,88.63,2.38169543]
[1771117785599,7.48026864,88.677,88.64,2.38169543]
[1771117786093,7.48026864,88.677,88.63,2.38169543]
[1771117787597,7.48026864,88.677,88.582,124.13]
[1771117787598,10.1532,88.691,88.64,2.38169543]
[1771117788196,10.1532,88.691,88.624,10.1607]
[1771117788197,7.47688328,88.692,88.65,2.38169543]
[1771117788699,7.4921528,88.691,88.65,2.38169543]
[1771117789495,10.1509,88.711,88.65,2.38169543]
[1771117789694,7.49253903,88.699,88.602,34.03]
[1771117789897,7.49253903,88.699,88.538,175.0]
[1771117789898,7.19853253,88.689,88.63,2.38169543]
[1771117790201,7.19853253,88.689,88.535,74.4]
[1771117790202,7.19853253,88.679,88.61,2.38169543]
[1771117790398,7.19853253,88.677,88.61,2.38169543]
[1771117790801,7.19853253,88.669,88.61,2.38169543]
[1771117791207,7.19879784,88.664,88.61,2.38169543]
[1771117791406,7.19879784,88.679,88.62,2.38169543]
[1771117791607,7.19879784,88.676,88.603,10.1632]
[1771117791807,7.19879784,88.676,88.63,2.38169543]
[1771117795408,17.41064745,88.674,88.63,2.38169543]
[1771117795610,7.25554745,88.674,88.63,2.38169543]
[1771117796015,7.2165561,88.709,88.63,2.38169543]
[1771117796305,7.2165561,88.689,88.64,2.38169543]
[1771117798214,7.2165561,88.689,88.63,2.38169543]
[1771117798713,7.22623375,88.669,88.61,2.38169543]
[1771117800211,7.22623375,88.669,88.62,2.38169543]
[1771117800713,7.19009204,88.684,88.63,2.38169543]
[1771117800916,7.19009204,88.684,88.64,2.38169543]
[1771117801308,7.19032253,88.679,88.62,2.38169543]
[1771117801609,2.38169543,88.64,88.58,2.38169543]
[1771117801809,2.38169543,88.63,88.57,2.38169543]
[1771117802014,7.19032253,88.639,88.59,2.38169543]
[1771117802215,7.19032253,88.639,88.6,2.38169543]
[1771117802508,7.22593817,88.659,88.61,2.38169543]
[1771117802910,7.22593817,88.659,88.62,2.38169543]
[1771117803117,7.22617332,88.679,88.62,2.38169543]
[1771117803409,7.22617332,88.679,88.63,2.38169543]
[1771117804611,33.86,88.741,88.573,33.86]
[1771117804612,7.11840952,88.703,88.65,2.38169543]
[1771117804808,7.11840952,88.72,88.66,2.38169543]
[1771117805110,7.11860066,88.718,88.66,2.38169543]
[1771117805309,7.11860066,88.718,88.67,2.38169543]
[1771117805602,7.11860066,88.718,88.601,33.86]
[1771117805807,7.10573093,88.699,88.64,2.38169543]
[1771117806008,7.10573093,88.696,88.64,2.38169543]
[1771117806917,7.10591671,88.694,88.621,10.1611]
[1771117807609,5.93704339,88.72,88.61,5.93704339]
[1771117807610,7.10591671,88.692,88.61,5.93704339]
[1771117808417,7.10591671,88.692,88.611,10.1622]
[1771117808614,7.08114539,88.69,88.611,10.1622]
[1771117808810,7.08114539,88.689,88.611,10.1622]
[1771117809518,7.08114539,88.689,88.622,10.161]
[1771117810413,7.08114539,88.689,88.61,5.93704339]
[1771117810414,7.08114539,88.689,88.633,10.1597]
[1771117812412,7.08114539,88.689,88.62,10.1612]
[1771117812817,7.08114539,88.689,88.591,90.02]
[1771117812818,7.10100007,88.712,88.641,10.1587]
[1771117817208,7.10100007,88.712,88.65,10.1578]
[1771117818009,7.10100007,88.712,88.637,10.1593]
[1771117818214,7.15700465,88.71,88.637,10.1593]
[1771117818620,7.15700465,88.709,88.637,10.1593]
[1771117818824,7.15700465,88.708,88.637,10.1593]
[1771117819114,7.15700465,88.708,88.62,10.1612]
[1771117819821,7.15688535,88.705,88.62,10.1612]
[1771117820422,7.15830896,88.696,88.61,10.1623]
[1771117821815,7.15819236,88.693,88.61,10.1623]
[1771117822521,10.1529,88.694,88.61,10.1623]
[1771117822522,7.19707409,88.69,88.61,10.1623]
[1771117823120,7.1969493,88.688,88.61,10.1623]
[1771117823521,7.1969493,88.687,88.599,10.1636]
[1771117823724,7.1969493,88.685,88.599,10.1636]
[1771117824722,7.19906958,88.672,88.599,10.1636]
[1771117825924,175.88,88.686,88.599,10.1636]
[1771117825925,7.09649028,88.67,88.599,10.1636]
[1771117826722,7.09649028,88.668,88.607,10.1627]
[1771117827118,7.09639303,88.666,88.607,10.1627]
[1771117827519,40.95639303,88.664,88.579,21.03907428]
[1771117827720,40.95639303,88.664,88.558,21.03907428]
[1771117827721,7.09639303,88.647,88.558,21.03907428]
[1771117828023,7.09639303,88.647,88.553,21.03907428]
[1771117828219,7.09639303,88.647,88.548,21.03907428]
[1771117828423,7.09652173,88.645,88.552,21.03907428]
[1771117828820,7.09652173,88.645,88.577,10.1661]
[1771117829126,7.09643073,88.629,88.577,10.1661]
[1771117830924,7.09643073,88.629,88.582,10.1656]
[1771117831526,7.09643073,88.629,88.58,2.37819418]
[1771117832222,7.09643073,88.629,88.563,10.1678]
[1771117832223,7.09643073,88.629,88.57,2.37819418]
[1771117832818,2.37819418,88.62,88.56,2.37819418]
[1771117833031,2.37819418,88.59,88.53,2.37819418]
[1771117833226,2.37819418,88.59,88.458,49.42910791]
[1771117833227,7.14194415,88.579,88.52,2.37819418]
[1771117834524,33.86,88.617,88.5,2.37819418]
[1771117834525,2.37819418,88.56,88.5,2.37819418]
[1771117834727,33.86,88.617,88.49,2.37819418]
[1771117834728,7.15537087,88.549,88.49,2.37819418]
[1771117834923,7.15537087,88.549,88.5,2.37819418]
[1771117835721,7.15527782,88.568,88.51,2.37819418]
[1771117836123,33.86,88.619,88.52,2.37819418]
[1771117836124,2.37819418,88.58,88.52,2.37819418]
[1771117836330,7.19227771,88.583,88.53,2.37819418]
[1771117837225,7.19227771,88.583,88.52,2.37819418]
[1771117837422,7.19227771,88.583,88.53,2.37819418]
[1771117838733,315.4171169,88.653,88.474,428.94728953]
[1771117838734,7.24374195,88.615,88.55,2.37819418]
[1771117838931,7.24374195,88.615,88.56,2.37819418]
[1771117839231,2.37819418,88.6,88.54,2.37819418]
[1771117839434,7.24363716,88.589,88.53,2.37819418]
[1771117840239,7.24363716,88.589,88.54,2.37819418]
[1771117840830,7.24363716,88.589,88.52,5.9498322]
[1771117841832,7.24363716,88.589,88.527,10.1718]
[1771117843939,7.24363716,88.589,88.537,10.1707]
[1771117844136,7.24363716,88.589,88.52,5.9498322]
[1771117845936,7.24363716,88.589,88.526,10.172]
[1771117846131,299.89382435,88.62,88.52,5.9498322]
[1771117846132,7.27183557,88.608,88.521,33.86]
[1771117846333,7.27183557,88.608,88.54,5.9498322]
[1771117846538,7.27183557,88.608,88.551,10.1692]
[1771117851136,7.13289395,88.649,88.56,10.1681]
[1771117851341,7.13289395,88.63,88.56,10.1681]
[1771117852540,7.13289395,88.63,88.569,10.1671]
[1771117854643,7.13289395,88.63,88.56,5.9498322]
[1771117855738,7.13289395,88.63,88.563,10.1677]
[1771117856239,7.13289395,88.63,88.549,10.1693]
[1771117856430,7.11865415,88.628,88.549,10.1693]
[1771117858847,7.03359604,88.623,88.535,10.1709]
[1771117859046,33.86,88.614,88.52,5.9498322]
[1771117859346,7.03359604,88.612,88.5,5.9498322]
[1771117859839,33.86,88.605,88.514,10.1734]
[1771117860032,7.02700657,88.603,88.514,10.1734]
[1771117860845,7.02694987,88.579,88.52,2.3812561]
[1771117861044,33.86,88.624,88.52,2.3812561]
[1771117861243,7.02694987,88.595,88.55,2.3812561]
[1771117861541,7.02694987,88.595,88.56,2.3812561]
[1771117862148,7.02694987,88.595,88.55,2.3812561]
[1771117862847,7.02694987,88.595,88.498,33.86]
[1771117862848,7.02694987,88.595,88.551,10.1691]
[1771117863637,7.02694987,88.595,88.53,5.9481852]
[1771117864645,7.02694987,88.595,88.531,10.1715]
[1771117868748,7.02694987,88.595,88.515,10.1733]
[1771117869046,7.16426373,88.593,88.496,90.08]
[1771117869244,7.16426373,88.591,88.49,5.9481852]
[1771117869649,7.16426373,88.589,88.49,5.9481852]
[1771117870554,7.16426373,88.589,88.505,10.1744]
[1771117871950,7.16426373,88.589,88.509,10.1739]
[1771117872551,7.16426373,88.589,88.514,0.3461395]
[1771117873053,7.16426373,88.589,88.518,10.1729]
[1771117875347,7.16426373,88.589,88.525,0.36560608]
[1771117877253,7.16426373,88.589,88.515,10.1732]
[1771117877450,7.16426373,88.589,88.511,0.34082371]
[1771117878451,7.16426373,88.589,88.495,0.33195709]
[1771117879258,10.165,88.588,88.495,0.33195709]
[1771117879556,5.95488211,88.59,88.495,0.33195709]
[1771117879557,33.86,88.586,88.495,0.33195709]
[1771117879758,6.848819,88.58,88.495,0.33195709]
[1771117880346,179.3261,88.579,88.495,0.33195709]
[1771117880552,6.90491689,88.578,88.495,0.33195709]
[1771117881357,6.90488283,88.576,88.495,0.33195709]
[1771117881953,6.88947312,88.569,88.495,0.33195709]
[1771117882153,6.88947312,88.567,88.495,0.33195709]
[1771117882355,6.88947312,88.565,88.495,0.33195709]
[1771117882551,159.22,88.564,88.495,0.33195709]
[1771117882761,201.48947312,88.563,88.495,0.33195709]
[1771117883054,6.8894405,88.562,88.495,0.33195709]
[1771117885753,6.88533969,88.56,88.495,0.33195709]
[1771117888361,6.88533969,88.56,88.481,0.46716898]
[1771117888956,6.77509591,88.557,88.481,0.46716898]
[1771117890764,6.71263007,88.509,88.416,0.58982488]
[1771117891064,6.71263007,88.509,88.441,0.58880351]
[1771117891964,6.71263007,88.509,88.442,0.58880351]
[1771117897364,33.86,88.549,88.441,10.1817]
[1771117897365,6.43015982,88.529,88.444,1.52901399]
[1771117897575,96.59015982,88.524,88.444,1.52901399]
[1771117897774,6.43015982,88.523,88.444,1.52901399]
[1771117898477,6.43015982,88.523,88.452,1.52301014]
[1771117899474,6.43015982,88.523,88.454,10.1803]
[1771117899674,6.43015982,88.523,88.455,1.52197225]
[1771117906977,6.9360803,88.519,88.46,2.38446728]
[1771117910482,6.9360803,88.519,88.47,2.38446728]
[1771117911687,6.9360803,88.519,88.461,1.55945732]
[1771117918490,6.9360803,88.519,88.47,2.38446728]
[1771117918687,6.9360803,88.519,88.461,1.55945732]
[1771117921084,6.9360803,88.509,88.447,1.7382669]
[1771117921292,6.9360803,88.499,88.447,1.7382669]
[1771117925096,6.9360803,88.499,88.45,2.38446728]
[1771117929201,6.9360803,88.499,88.46,4.47058227]
[1771117929496,6.9360803,88.499,88.461,2.08611499]
[1771117929797,6.9360803,88.517,88.47,2.38446728]
[1771117931897,6.9360803,88.517,88.461,2.08611499]
[1771117933102,6.9360803,88.517,88.471,1.89917353]
[1771117936008,6.9360803,88.517,88.47,2.38446728]
[1771117936409,6.9360803,88.517,88.46,23.42354156]
[1771117936709,6.76283413,88.509,88.451,21.03907428]
[1771117936898,6.76283413,88.509,88.451,22.95720865]
[1771117937606,6.76283413,88.509,88.451,1.91813437]
[1771117937808,6.76283413,88.499,88.443,21.03907428]
[1771117938003,6.76283413,88.499,88.444,1.90802666]
[1771117938606,6.76283413,88.497,88.444,1.90802666]
[1771117939710,6.76283413,88.495,88.444,1.90802666]
[1771117941007,6.76283413,88.51,88.461,1.94326935]
[1771117942511,6.76283413,88.509,88.461,1.94326935]
[1771117943717,6.76283413,88.507,88.461,1.94326935]
[1771117945713,6.76283413,88.507,88.46,2.38507807]
[1771117956922,6.76283413,88.505,88.46,2.38507807]
[1771117957718,6.76283413,88.502,88.45,2.38507807]
[1771117958021,6.76283413,88.502,88.451,1.67852484]
[1771117958423,6.76283413,88.499,88.451,1.67852484]
[1771117959021,6.76283413,88.497,88.451,1.67852484]
[1771117960324,6.76283413,88.495,88.451,1.67852484]
[1771117960922,6.9535994,88.507,88.461,1.79605731]
[1771117968722,6.9535994,88.507,88.462,10.1793]
[1771117968929,6.9535994,88.507,88.471,1.83267425]
[1771117971839,6.84527125,88.52,88.481,1.65018769]
[1771117972532,6.84527125,88.52,88.463,22.64440684]
[1771117972533,9.23034932,88.52,88.463,22.64440684]
[1771117972828,9.23034932,88.52,88.463,1.60533256]
[1771117972829,6.84527125,88.519,88.463,1.60533256]
[1771117973938,6.84527125,88.519,88.453,21.03907428]
[1771117974332,2.38507807,88.51,88.453,21.03907428]
[1771117974641,6.84527125,88.509,88.452,1.60488969]
[1771117975837,6.84527125,88.502,88.452,1.60488969]
[1771117976440,10.175,88.501,88.44,14.29432195]
[1771117976736,6.84527125,88.499,88.441,1.72734388]
[1771117981235,6.84527125,88.493,88.438,21.03907428]
[1771117981537,158.1911,88.55,88.42,21.03907428]
[1771117981538,6.84527125,88.479,88.42,21.03907428]
[1771117981742,6.84527125,88.469,88.41,2.38507807]
[1771117982743,6.84527125,88.462,88.41,2.38507807]
[1771117983236,10.1798,88.459,88.41,2.38507807]
[1771117983438,6.84527125,88.458,88.4,2.38507807]
[1771117983635,6.84527125,88.458,88.398,1.65984578]
[1771117983833,6.84527125,88.436,88.39,2.38507807]
[1771117987345,10.1812,88.447,88.401,1.63519521]
[1771117987644,6.84527125,88.446,88.401,1.63519521]
[1771117987842,6.84527125,88.446,88.4,2.38507807]
[1771117988342,6.84527125,88.446,88.39,2.38507807]
[1771117988948,6.84527125,88.444,88.39,2.38507807]
[1771117989242,6.84527125,88.439,88.39,2.38507807]
[1771117989441,6.84527125,88.439,88.385,297.46898656]
[1771117990241,6.84527125,88.439,88.38,2.38507807]
[1771117990543,6.84527125,88.439,88.37,1.6428466]
[1771117990544,6.84527125,88.428,88.37,4.02792467]
[1771117990948,6.84527125,88.415,88.36,2.38507807]
[1771117991947,6.84527125,88.409,88.35,2.38507807]
[1771117992141,6.84527125,88.409,88.344,1.88967406]
[1771117992346,6.84527125,88.409,88.35,2.38507807]
[1771117992546,6.84527125,88.405,88.35,2.38507807]
[1771117993748,6.82397103,88.397,88.35,2.38507807]
[1771117994246,6.82397103,88.386,88.344,1.88967406]
[1771117994850,6.82397103,88.386,88.34,2.38507807]
[1771117995048,6.82397103,88.383,88.34,2.38507807]
[1771117995848,10.1876,88.391,88.35,2.38507807]
[1771117996047,6.82397103,88.396,88.36,2.38507807]
[1771117996450,6.82397103,88.396,88.351,3.46508639]
[1771117996751,6.82397103,88.396,88.36,2.38507807]
[1771117997452,6.82397103,88.395,88.351,3.46508639]
[1771117997946,6.82397103,88.395,88.36,2.38507807]
[1771117998146,108.36,88.413,88.32,1.9692837]
[1771117998147,6.82397103,88.394,88.35,2.38507807]
[1771117998651,6.82397103,88.412,88.361,3.38971331]
[1771117998950,6.82397103,88.412,88.37,2.38507807]
[1771117999850,6.82397103,88.412,88.38,2.38507807]
[1771118001046,6.82397103,88.412,88.37,5.77286536]
[1771118004653,6.82397103,88.412,88.371,3.57513544]
[1771118004952,6.82397103,88.412,88.38,2.3890342]
[1771118005351,6.82397103,88.412,88.371,3.57513544]
[1771118008950,6.82397103,88.412,88.36,2.3890342]
[1771118011755,6.82397103,88.412,88.361,3.61584559]
[1771118014761,6.82397103,88.41,88.361,3.61584559]
[1771118016462,6.82397103,88.408,88.361,3.61584559]
[1771118017761,6.82397103,88.408,88.37,2.3890342]
[1771118017956,6.82397103,88.432,88.39,2.3890342]
[1771118018357,6.82397103,88.432,88.37,2.3890342]
[1771118018659,6.82397103,88.429,88.37,2.3890342]
[1771118019665,6.82397103,88.429,88.369,3.50245371]
[1771118019854,6.82397103,88.419,88.36,2.3890342]
[1771118020367,6.82397103,88.419,88.361,13.82708143]
[1771118020567,6.82397103,88.419,88.362,3.62707939]
[1771118020866,6.82397103,88.419,88.38,2.3890342]
[1771118021654,6.82397103,88.419,88.38,12.5777342]
[1771118021859,2.3890342,88.45,88.39,2.3890342]
[1771118021860,6.70611277,88.439,88.39,2.3890342]
[1771118022668,6.70611277,88.439,88.381,3.62068364]
[1771118023768,6.47175699,88.437,88.385,10.1882]
[1771118024666,246.42,88.436,88.381,3.62068364]
[1771118024966,6.47175699,88.435,88.381,3.62068364]
[1771118026464,16.65435699,88.435,88.381,3.62068364]
[1771118026660,6.47175699,88.434,88.381,3.62068364]
[1771118027469,6.47175699,88.429,88.37,2.3890342]
[1771118028768,6.47175699,88.422,88.369,3.60155722]
[1771118028971,6.47175699,88.419,88.36,2.3890342]
[1771118029561,6.47175699,88.419,88.356,3.39889197]
[1771118029764,6.47175699,88.41,88.356,3.39889197]
[1771118029965,6.47175699,88.444,88.4,2.3890342]
[1771118031367,6.47175699,88.439,88.38,2.3890342]
[1771118031567,409.42861537,88.478,88.341,90.22]
[1771118031568,6.47175699,88.419,88.361,3.4308925]
[1771118033275,6.47175699,88.419,88.361,24.46996678]
[1771118034175,6.47175699,88.419,88.362,21.03907428]
[1771118034376,6.47175699,88.419,88.363,21.03907428]
[1771118035179,6.47175699,88.419,88.37,2.3890342]
[1771118035677,6.47175699,88.417,88.37,2.3890342]
[1771118036868,16.65645699,88.416,88.37,2.3890342]
[1771118037179,6.47175699,88.415,88.371,3.47171883]
[1771118037381,6.47175699,88.415,88.38,2.3890342]